[Event "*** Titled Tuesday 3|2 Blitz"]
[Site "Chess.com"]
[Date "2017.03.07"]
[Round "6"]
[White "Alex_Molchanov"]
[Black "GMCanty"]
[Result "0-1"]
[WhiteElo "2466"]
[BlackElo "2354"]
[TimeControl "180+2"]
[EndTime "14:23:46 PST"]
[Termination "GMCanty won by checkmate"]

1. d4 {[%clk 0:03:02]} 1... Nf6 {[%clk 0:02:59.9]} 2. c4 {[%clk 0:03:02.7]} 2...
e6 {[%clk 0:03:00.4]} 3. Nf3 {[%clk 0:03:03.8]} 3... c5 {[%clk 0:02:59.5]} 4. d5
{[%clk 0:03:02.4]} 4... d6 {[%clk 0:02:59.1]} 5. Nc3 {[%clk 0:03:02]} 5... e5
{[%clk 0:03:00.2]} 6. e4 {[%clk 0:02:58.7]} 6... Be7 {[%clk 0:02:58]} 7. h3
{[%clk 0:02:58.4]} 7... a6 {[%clk 0:02:57.4]} 8. Be2 {[%clk 0:02:58.5]} 8...
Nbd7 {[%clk 0:02:54.9]} 9. O-O {[%clk 0:02:57.2]} 9... Nf8 {[%clk 0:02:55.5]}
10. a3 {[%clk 0:02:55.8]} 10... h5 {[%clk 0:02:52.7]} 11. b4 {[%clk 0:02:52.7]}
11... b6 {[%clk 0:02:51.6]} 12. bxc5 {[%clk 0:02:48.5]} 12... bxc5 {[%clk
0:02:53.5]} 13. Rb1 {[%clk 0:02:49.3]} 13... Ng6 {[%clk 0:02:54.9]} 14. Na4
{[%clk 0:02:39]} 14... Nd7 {[%clk 0:02:43.1]} 15. Bd2 {[%clk 0:02:30.8]} 15...
Nf4 {[%clk 0:02:34.3]} 16. Re1 {[%clk 0:02:27.6]} 16... g5 {[%clk 0:02:33.3]}
17. Nh2 {[%clk 0:02:13.5]} 17... Rb8 {[%clk 0:02:05.3]} 18. Bf1 {[%clk
0:02:06.2]} 18... Rxb1 {[%clk 0:01:50.1]} 19. Qxb1 {[%clk 0:02:08.1]} 19... g4
{[%clk 0:01:45]} 20. h4 {[%clk 0:01:31.8]} 20... Bxh4 {[%clk 0:01:14.6]} 21. g3
{[%clk 0:01:32.6]} 21... Rg8 {[%clk 0:01:14.2]} 22. gxh4 {[%clk 0:00:58.1]}
22... g3 {[%clk 0:01:05.4]} 23. fxg3 {[%clk 0:00:46]} 23... Rxg3+ {[%clk
0:01:07.3]} 24. Kh1 {[%clk 0:00:46.9]} 24... Qxh4 {[%clk 0:00:55.8]} 25. Bxf4
{[%clk 0:00:32.9]} 25... Qxf4 {[%clk 0:00:34]} 26. Nb2 {[%clk 0:00:16.2]} 26...
Qf2 {[%clk 0:00:34.4]} 27. Bd3 {[%clk 0:00:13.3]} 27... Qg2# {[%clk 0:00:33.9]}
0-1

[Event "*** Titled Tuesday 3|2 Blitz"]
[Site "Chess.com"]
[Date "2017.03.07"]
[Round "6"]
[White "MyleneFarmer"]
[Black "silverback96"]
[Result "0-1"]
[WhiteElo "2353"]
[BlackElo "2083"]
[TimeControl "180+2"]
[EndTime "14:23:54 PST"]
[Termination "silverback96 won by checkmate"]

1. d4 {[%clk 0:03:02]} 1... Nf6 {[%clk 0:03:00.5]} 2. c4 {[%clk 0:02:57.2]} 2...
c5 {[%clk 0:03:01.7]} 3. d5 {[%clk 0:02:57.3]} 3... b5 {[%clk 0:03:03.3]} 4.
cxb5 {[%clk 0:02:57.8]} 4... a6 {[%clk 0:03:04.9]} 5. bxa6 {[%clk 0:02:57.7]}
5... g6 {[%clk 0:03:06]} 6. Nc3 {[%clk 0:02:57.6]} 6... Bg7 {[%clk 0:03:07.5]}
7. e4 {[%clk 0:02:57]} 7... O-O {[%clk 0:03:09.4]} 8. Nf3 {[%clk 0:02:57.4]}
8... Qa5 {[%clk 0:03:09.7]} 9. Bd2 {[%clk 0:02:57.7]} 9... Bxa6 {[%clk
0:03:10.9]} 10. Bxa6 {[%clk 0:02:58]} 10... Qxa6 {[%clk 0:03:12.3]} 11. Qe2
{[%clk 0:02:58.4]} 11... e6 {[%clk 0:03:14]} 12. Qxa6 {[%clk 0:02:58.9]} 12...
Nxa6 {[%clk 0:03:15.9]} 13. dxe6 {[%clk 0:02:59.7]} 13... fxe6 {[%clk
0:03:12.1]} 14. O-O {[%clk 0:02:59.7]} 14... Rab8 {[%clk 0:03:03.8]} 15. b3
{[%clk 0:02:53.9]} 15... d5 {[%clk 0:02:59]} 16. exd5 {[%clk 0:02:35.9]} 16...
exd5 {[%clk 0:03:00.9]} 17. Rac1 {[%clk 0:02:34.7]} 17... Rfd8 {[%clk
0:02:01.1]} 18. Bf4 {[%clk 0:02:18.8]} 18... Rb4 {[%clk 0:01:58.8]} 19. Be5
{[%clk 0:02:03.9]} 19... Ne4 {[%clk 0:01:41.8]} 20. Na4 {[%clk 0:01:58.9]} 20...
Bxe5 {[%clk 0:01:37.4]} 21. Nxe5 {[%clk 0:02:00.8]} 21... Re8 {[%clk 0:01:13]}
22. Nd3 {[%clk 0:01:59.4]} 22... Rb5 {[%clk 0:01:10.1]} 23. Rfe1 {[%clk
0:01:58.1]} 23... Rc8 {[%clk 0:00:53.9]} 24. f3 {[%clk 0:01:56.7]} 24... Nd6
{[%clk 0:00:50.5]} 25. Naxc5 {[%clk 0:01:50]} 25... Nxc5 {[%clk 0:00:50.4]} 26.
Nxc5 {[%clk 0:01:46.8]} 26... Rbxc5 {[%clk 0:00:51.6]} 27. Rxc5 {[%clk
0:01:48.4]} 27... Rxc5 {[%clk 0:00:53.5]} 28. Re7 {[%clk 0:01:49.5]} 28... Rc1+
{[%clk 0:00:52.4]} 29. Kf2 {[%clk 0:01:42]} 29... Rc2+ {[%clk 0:00:53.8]} 30.
Kf1 {[%clk 0:01:41.2]} 30... Rxa2 {[%clk 0:00:54.2]} 31. Rd7 {[%clk 0:01:41.7]}
31... Nf5 {[%clk 0:00:55.5]} 32. g4 {[%clk 0:01:42.7]} 32... Ne3+ {[%clk
0:00:56.6]} 33. Kg1 {[%clk 0:01:44.1]} 33... Rg2+ {[%clk 0:00:53.5]} 34. Kh1
{[%clk 0:01:41.4]} 34... Rd2 {[%clk 0:00:55.4]} 35. h4 {[%clk 0:01:41.4]} 35...
Nc2 {[%clk 0:00:43]} 36. h5 {[%clk 0:01:09.4]} 36... Ne1 {[%clk 0:00:43.6]} 37.
h6 {[%clk 0:01:09.5]} 37... Nxf3 {[%clk 0:00:42.2]} 38. Rg7+ {[%clk 0:01:00.8]}
38... Kf8 {[%clk 0:00:43.1]} 39. Rxh7 {[%clk 0:00:57.9]} 39... Rh2# {[%clk
0:00:43.9]} 0-1

[Event "*** Titled Tuesday 3|2 Blitz"]
[Site "Chess.com"]
[Date "2017.03.07"]
[Round "6"]
[White "peteseeger"]
[Black "FlameOak4464"]
[Result "1-0"]
[WhiteElo "2086"]
[BlackElo "1766"]
[TimeControl "180+2"]
[EndTime "14:24:00 PST"]
[Termination "peteseeger won by resignation"]

1. e4 {[%clk 0:02:49.4]} 1... e5 {[%clk 0:03:00.3]} 2. Nf3 {[%clk 0:02:49.5]}
2... Nc6 {[%clk 0:03:00.6]} 3. Bc4 {[%clk 0:02:50]} 3... Bc5 {[%clk 0:03:00.9]}
4. O-O {[%clk 0:02:48.4]} 4... Nf6 {[%clk 0:02:58.6]} 5. d3 {[%clk 0:02:49]}
5... h6 {[%clk 0:02:58]} 6. Nbd2 {[%clk 0:02:46.8]} 6... d6 {[%clk 0:02:55.6]}
7. c3 {[%clk 0:02:46.2]} 7... O-O {[%clk 0:02:54.6]} 8. Bb3 {[%clk 0:02:41.9]}
8... d5 {[%clk 0:02:45.4]} 9. exd5 {[%clk 0:02:40.3]} 9... Nxd5 {[%clk
0:02:46.1]} 10. Re1 {[%clk 0:02:39.9]} 10... Nf4 {[%clk 0:02:28.2]} 11. d4
{[%clk 0:02:23]} 11... exd4 {[%clk 0:02:23.7]} 12. Ne4 {[%clk 0:02:23.7]} 12...
Bd6 {[%clk 0:02:12.2]} 13. Nxd4 {[%clk 0:02:13]} 13... Nxd4 {[%clk 0:01:55.7]}
14. Qxd4 {[%clk 0:02:13.5]} 14... Ne6 {[%clk 0:01:54.2]} 15. Qd1 {[%clk
0:01:57]} 15... Be7 {[%clk 0:01:48.1]} 16. Qf3 {[%clk 0:01:56.3]} 16... Ng5
{[%clk 0:01:43]} 17. Bxg5 {[%clk 0:01:52.1]} 17... Bxg5 {[%clk 0:01:43.8]} 18.
Rad1 {[%clk 0:01:51.9]} 18... Qe7 {[%clk 0:01:36.8]} 19. Nd6 {[%clk 0:01:32.5]}
19... Qf6 {[%clk 0:01:32.8]} 20. Nxf7 {[%clk 0:01:05.7]} 20... Qxf3 {[%clk
0:00:17.4]} 21. Nxg5+ {[%clk 0:01:04.5]} 21... Kh8 {[%clk 0:00:16.2]} 22. Nxf3
{[%clk 0:01:04.8]} 22... Bg4 {[%clk 0:00:16.4]} 23. Re7 {[%clk 0:01:00.7]} 23...
Bxf3 {[%clk 0:00:15.7]} 24. gxf3 {[%clk 0:01:00.9]} 24... Rxf3 {[%clk
0:00:16.8]} 25. Rxc7 {[%clk 0:01:00]} 25... Raf8 {[%clk 0:00:16.3]} 26. Rd2
{[%clk 0:00:54]} 26... R8f6 {[%clk 0:00:16.7]} 27. Rxb7 {[%clk 0:00:53.3]} 27...
Rg6+ {[%clk 0:00:17.8]} 28. Kf1 {[%clk 0:00:54.2]} 28... Rh3 {[%clk 0:00:14.5]}
29. Rb8+ {[%clk 0:00:53.2]} 29... Kh7 {[%clk 0:00:11.6]} 30. Bg8+ {[%clk
0:00:53.7]} 30... Kh8 {[%clk 0:00:11.3]} 31. Be6+ {[%clk 0:00:54]} 31... Kh7
{[%clk 0:00:12.6]} 32. Bxh3 {[%clk 0:00:54.7]} 1-0

[Event "*** Titled Tuesday 3|2 Blitz"]
[Site "Chess.com"]
[Date "2017.03.07"]
[Round "6"]
[White "Jadro9"]
[Black "AnthonyWirig"]
[Result "0-1"]
[WhiteElo "2395"]
[BlackElo "2556"]
[TimeControl "180+2"]
[EndTime "14:24:09 PST"]
[Termination "AnthonyWirig won on time"]

1. e4 {[%clk 0:03:02]} 1... c5 {[%clk 0:03:00.6]} 2. Nf3 {[%clk 0:03:02.2]} 2...
e6 {[%clk 0:03:01.9]} 3. g3 {[%clk 0:03:02.5]} 3... Nc6 {[%clk 0:03:01.6]} 4.
Bg2 {[%clk 0:03:03.9]} 4... a6 {[%clk 0:03:02.6]} 5. O-O {[%clk 0:03:04]} 5...
Nf6 {[%clk 0:03:03.4]} 6. Qe2 {[%clk 0:03:04.7]} 6... Be7 {[%clk 0:03:03.6]} 7.
Rd1 {[%clk 0:03:03.4]} 7... d5 {[%clk 0:03:03.6]} 8. exd5 {[%clk 0:03:04.3]}
8... exd5 {[%clk 0:03:04.6]} 9. d4 {[%clk 0:03:05.6]} 9... c4 {[%clk 0:03:06.2]}
10. b3 {[%clk 0:02:59.7]} 10... cxb3 {[%clk 0:03:07.1]} 11. axb3 {[%clk
0:03:00.3]} 11... O-O {[%clk 0:03:09]} 12. c4 {[%clk 0:02:30.5]} 12... Bg4
{[%clk 0:03:09.2]} 13. Be3 {[%clk 0:02:26.9]} 13... Ne4 {[%clk 0:03:03.2]} 14.
h3 {[%clk 0:01:22.1]} 14... Bh5 {[%clk 0:03:03.9]} 15. g4 {[%clk 0:01:19.8]}
15... Bg6 {[%clk 0:03:05.1]} 16. Ne5 {[%clk 0:01:13.9]} 16... Nf6 {[%clk
0:02:33.2]} 17. Nc3 {[%clk 0:01:13.3]} 17... Nb4 {[%clk 0:02:30.2]} 18. Rd2
{[%clk 0:00:53.5]} 18... Rc8 {[%clk 0:02:22.5]} 19. Ra4 {[%clk 0:00:43.9]} 19...
b5 {[%clk 0:02:17.2]} 20. Ra1 {[%clk 0:00:26.2]} 20... bxc4 {[%clk 0:02:17.7]}
21. bxc4 {[%clk 0:00:27.3]} 21... dxc4 {[%clk 0:02:18.3]} 22. d5 {[%clk
0:00:28.8]} 22... Bd3 {[%clk 0:02:17.4]} 23. Nxd3 {[%clk 0:00:29.5]} 23... cxd3
{[%clk 0:02:18.7]} 24. Rxd3 {[%clk 0:00:30.5]} 24... Nxd3 {[%clk 0:02:15.1]} 25.
Qxd3 {[%clk 0:00:32.1]} 25... Nd7 {[%clk 0:02:05.2]} 26. Rxa6 {[%clk 0:00:19.6]}
26... Nc5 {[%clk 0:02:06.1]} 27. Bxc5 {[%clk 0:00:20.6]} 27... Bxc5 {[%clk
0:02:07]} 28. Ne4 {[%clk 0:00:21.6]} 28... Bb6 {[%clk 0:01:19.5]} 29. d6 {[%clk
0:00:21.4]} 29... Rb8 {[%clk 0:01:20.7]} 30. d7 {[%clk 0:00:20.1]} 30... Qe7
{[%clk 0:01:10.7]} 31. Ra1 {[%clk 0:00:21]} 31... Rfd8 {[%clk 0:01:09.7]} 32.
Rd1 {[%clk 0:00:22.2]} 32... h6 {[%clk 0:01:10.1]} 33. Ng3 {[%clk 0:00:16.6]}
33... g6 {[%clk 0:01:05.9]} 34. Bc6 {[%clk 0:00:11.7]} 34... Qe5 {[%clk
0:01:03.8]} 0-1

[Event "*** Titled Tuesday 3|2 Blitz"]
[Site "Chess.com"]
[Date "2017.03.07"]
[Round "6"]
[White "ShimanovAlex"]
[Black "pKiLz5Rn9b"]
[Result "0-1"]
[WhiteElo "2637"]
[BlackElo "2559"]
[TimeControl "180+2"]
[EndTime "14:24:27 PST"]
[Termination "pKiLz5Rn9b won on time"]

1. d4 {[%clk 0:03:01.9]} 1... e6 {[%clk 0:03:00.6]} 2. Bf4 {[%clk 0:03:00.2]}
2... Nf6 {[%clk 0:03:00.3]} 3. e3 {[%clk 0:03:00.3]} 3... d5 {[%clk 0:03:01.7]}
4. Nd2 {[%clk 0:03:00.3]} 4... Bd6 {[%clk 0:03:03.2]} 5. Bg3 {[%clk 0:03:00.6]}
5... O-O {[%clk 0:03:04.1]} 6. Ngf3 {[%clk 0:03:00.5]} 6... b6 {[%clk
0:03:01.9]} 7. Bd3 {[%clk 0:02:57.1]} 7... c5 {[%clk 0:03:02.9]} 8. c3 {[%clk
0:02:58.1]} 8... Ba6 {[%clk 0:03:04.4]} 9. Bc2 {[%clk 0:02:32.6]} 9... Nc6
{[%clk 0:03:03.6]} 10. Ne5 {[%clk 0:02:33.5]} 10... Qc7 {[%clk 0:02:51.8]} 11.
f4 {[%clk 0:02:31.5]} 11... Ne7 {[%clk 0:02:53]} 12. Qf3 {[%clk 0:02:30.9]}
12... Nf5 {[%clk 0:02:47.4]} 13. Bf2 {[%clk 0:02:31.6]} 13... Be7 {[%clk
0:02:48.9]} 14. Qh3 {[%clk 0:01:51.3]} 14... Nd6 {[%clk 0:02:44.6]} 15. Bh4
{[%clk 0:01:46.4]} 15... Nfe4 {[%clk 0:02:43.7]} 16. Bxe7 {[%clk 0:01:47]} 16...
Qxe7 {[%clk 0:02:45.6]} 17. Nxe4 {[%clk 0:01:45.8]} 17... Nxe4 {[%clk
0:02:46.4]} 18. Bxe4 {[%clk 0:01:41.6]} 18... dxe4 {[%clk 0:02:46.4]} 19. O-O-O
{[%clk 0:01:43.2]} 19... f6 {[%clk 0:02:45.1]} 20. Ng4 {[%clk 0:01:36]} 20...
Bd3 {[%clk 0:02:36.1]} 21. Nf2 {[%clk 0:01:35.5]} 21... c4 {[%clk 0:02:36.6]}
22. Nxd3 {[%clk 0:01:12.8]} 22... cxd3 {[%clk 0:02:36.7]} 23. a3 {[%clk
0:01:12.3]} 23... b5 {[%clk 0:02:35.7]} 24. Kd2 {[%clk 0:01:13.4]} 24... a5
{[%clk 0:02:35.1]} 25. Ra1 {[%clk 0:01:13.9]} 25... b4 {[%clk 0:02:31.2]} 26.
Qh5 {[%clk 0:00:29.8]} 26... f5 {[%clk 0:02:27.7]} 27. Rhb1 {[%clk 0:00:26]}
27... Rab8 {[%clk 0:02:27.1]} 28. axb4 {[%clk 0:00:26.1]} 28... axb4 {[%clk
0:02:27.4]} 29. g3 {[%clk 0:00:25.3]} 29... Rfc8 {[%clk 0:02:25.9]} 30. Qd1
{[%clk 0:00:24.2]} 30... Rb7 {[%clk 0:01:59]} 31. Ra4 {[%clk 0:00:12.4]} 31...
Rcb8 {[%clk 0:01:58.2]} 32. c4 {[%clk 0:00:13.5]} 32... b3 {[%clk 0:01:55.9]}
33. Rba1 {[%clk 0:00:14.4]} 33... Rd8 {[%clk 0:01:36.6]} 34. Qc1 {[%clk
0:00:14.2]} 34... Qf7 {[%clk 0:01:32.6]} 35. Qd1 {[%clk 0:00:14.2]} 35... Rc8
{[%clk 0:01:25.8]} 36. c5 {[%clk 0:00:15]} 36... h6 {[%clk 0:01:24.2]} 37. h4
{[%clk 0:00:15.3]} 37... Qg6 {[%clk 0:01:23.3]} 38. Qg1 {[%clk 0:00:16.2]} 38...
Rbc7 {[%clk 0:01:17.5]} 39. Qf2 {[%clk 0:00:16.6]} 39... Qf6 {[%clk 0:01:17.1]}
40. Rb4 {[%clk 0:00:17.5]} 40... Rxc5 {[%clk 0:01:17.5]} 41. Kd1 {[%clk
0:00:08]} 41... Rc2 {[%clk 0:01:14.9]} 42. Qe1 {[%clk 0:00:09]} 42... Qg6 {[%clk
0:01:15.1]} 0-1

[Event "*** Titled Tuesday 3|2 Blitz"]
[Site "Chess.com"]
[Date "2017.03.07"]
[Round "6"]
[White "chito89"]
[Black "alekroth64"]
[Result "1-0"]
[WhiteElo "2536"]
[BlackElo "2270"]
[TimeControl "180+2"]
[EndTime "14:24:27 PST"]
[Termination "chito89 won by resignation"]

1. e4 {[%clk 0:02:55.9]} 1... e5 {[%clk 0:02:58.9]} 2. Nf3 {[%clk 0:02:51]} 2...
Nc6 {[%clk 0:03:00.2]} 3. Bc4 {[%clk 0:02:45.6]} 3... Nf6 {[%clk 0:02:58.8]} 4.
d3 {[%clk 0:02:43.9]} 4... Bc5 {[%clk 0:02:59.3]} 5. c3 {[%clk 0:02:42.9]} 5...
d6 {[%clk 0:03:00.4]} 6. O-O {[%clk 0:02:44]} 6... a6 {[%clk 0:02:59]} 7. a4
{[%clk 0:02:44.8]} 7... Ba7 {[%clk 0:02:50.6]} 8. b4 {[%clk 0:02:39.3]} 8... Be6
{[%clk 0:02:47.1]} 9. Nbd2 {[%clk 0:02:35.2]} 9... Bxc4 {[%clk 0:02:46.1]} 10.
Nxc4 {[%clk 0:02:35.9]} 10... Ne7 {[%clk 0:02:36.4]} 11. Be3 {[%clk 0:02:27.5]}
11... O-O {[%clk 0:02:26.7]} 12. Bxa7 {[%clk 0:02:26.4]} 12... Rxa7 {[%clk
0:02:26.4]} 13. Re1 {[%clk 0:02:24.9]} 13... Ra8 {[%clk 0:02:26.6]} 14. Ne3
{[%clk 0:02:18.3]} 14... Qd7 {[%clk 0:02:18.2]} 15. Qb3 {[%clk 0:02:11]} 15...
Ng4 {[%clk 0:02:13.1]} 16. Nxg4 {[%clk 0:02:08.5]} 16... Qxg4 {[%clk 0:02:13.3]}
17. h3 {[%clk 0:02:10.2]} 17... Qh5 {[%clk 0:02:07.7]} 18. d4 {[%clk 0:02:08.8]}
18... Ng6 {[%clk 0:02:05.6]} 19. c4 {[%clk 0:01:30.7]} 19... Nf4 {[%clk
0:01:58.3]} 20. Kh2 {[%clk 0:01:32]} 20... Kh8 {[%clk 0:01:36.8]} 21. Rad1
{[%clk 0:01:29]} 21... f5 {[%clk 0:01:26.3]} 22. dxe5 {[%clk 0:01:30]} 22...
dxe5 {[%clk 0:01:20.7]} 23. Nxe5 {[%clk 0:01:19.9]} 23... fxe4 {[%clk 0:01:09]}
24. Ng4 {[%clk 0:01:21.2]} 24... Nd3 {[%clk 0:00:57.8]} 25. Rxe4 {[%clk
0:01:15.3]} 25... Nxf2 {[%clk 0:00:54.7]} 26. Nxf2 {[%clk 0:01:16.6]} 26... Rxf2
{[%clk 0:00:54.7]} 27. Rde1 {[%clk 0:01:16.1]} 27... Qg6 {[%clk 0:00:42.9]} 28.
Qg3 {[%clk 0:01:14.6]} 28... Rff8 {[%clk 0:00:39.7]} 29. Re7 {[%clk 0:01:13.1]}
29... Rac8 {[%clk 0:00:33.8]} 30. b5 {[%clk 0:00:55.4]} 30... axb5 {[%clk
0:00:26.5]} 31. axb5 {[%clk 0:00:56.9]} 31... Qxg3+ {[%clk 0:00:24.7]} 32. Kxg3
{[%clk 0:00:58.4]} 32... h6 {[%clk 0:00:23]} 33. Rd7 {[%clk 0:00:58.1]} 33...
Rf5 {[%clk 0:00:18]} 34. Ree7 {[%clk 0:00:57]} 34... Rg5+ {[%clk 0:00:18.6]} 35.
Kh2 {[%clk 0:00:57.9]} 35... c6 {[%clk 0:00:11.9]} 36. b6 {[%clk 0:00:59]} 36...
Rb8 {[%clk 0:00:07.9]} 37. Rxb7 {[%clk 0:00:59.5]} 37... Rxb7 {[%clk 0:00:08.9]}
38. Rxb7 {[%clk 0:01:01.1]} 38... Rc5 {[%clk 0:00:09.9]} 39. Rc7 {[%clk
0:01:02.5]} 39... Rxc4 {[%clk 0:00:07.1]} 40. b7 {[%clk 0:01:03.7]} 1-0

[Event "*** Titled Tuesday 3|2 Blitz"]
[Site "Chess.com"]
[Date "2017.03.07"]
[Round "6"]
[White "Chesstrainer1"]
[Black "FearlessKing64"]
[Result "1-0"]
[WhiteElo "2332"]
[BlackElo "2104"]
[TimeControl "180+2"]
[EndTime "14:24:29 PST"]
[Termination "Chesstrainer1 won by resignation"]

1. Nf3 {[%clk 0:03:01.9]} 1... Nf6 {[%clk 0:03:00.6]} 2. c4 {[%clk 0:03:02.8]}
2... g6 {[%clk 0:03:01.3]} 3. Nc3 {[%clk 0:03:03.8]} 3... d5 {[%clk 0:03:02.8]}
4. cxd5 {[%clk 0:03:04.3]} 4... Nxd5 {[%clk 0:03:04.7]} 5. e4 {[%clk 0:03:05.4]}
5... Nxc3 {[%clk 0:02:59.7]} 6. dxc3 {[%clk 0:03:07.3]} 6... Qxd1+ {[%clk
0:02:59.6]} 7. Kxd1 {[%clk 0:03:09.2]} 7... Bg7 {[%clk 0:03:00.5]} 8. Bf4 {[%clk
0:03:04.5]} 8... c6 {[%clk 0:02:58.2]} 9. Kc2 {[%clk 0:03:02.3]} 9... Nd7 {[%clk
0:02:53.2]} 10. a4 {[%clk 0:02:50.9]} 10... Nc5 {[%clk 0:02:50.6]} 11. Nd2
{[%clk 0:02:49.4]} 11... O-O {[%clk 0:02:38.3]} 12. Be3 {[%clk 0:02:38.5]} 12...
Ne6 {[%clk 0:02:22.4]} 13. a5 {[%clk 0:02:31.6]} 13... Nc7 {[%clk 0:02:11.6]}
14. h4 {[%clk 0:02:27.9]} 14... Be6 {[%clk 0:02:03.3]} 15. h5 {[%clk 0:02:25.5]}
15... Rfd8 {[%clk 0:01:51.2]} 16. Nb3 {[%clk 0:02:10.8]} 16... Bxb3+ {[%clk
0:01:32.5]} 17. Kxb3 {[%clk 0:02:11.4]} 17... Rd7 {[%clk 0:01:23.6]} 18. hxg6
{[%clk 0:02:08.6]} 18... hxg6 {[%clk 0:01:24.1]} 19. Bc4 {[%clk 0:02:04.9]}
19... Ne8 {[%clk 0:01:13.3]} 20. Rhd1 {[%clk 0:01:53.7]} 20... Rxd1 {[%clk
0:01:12.6]} 21. Rxd1 {[%clk 0:01:53.9]} 21... Nd6 {[%clk 0:01:13.7]} 22. Bd3
{[%clk 0:01:54.9]} 22... a6 {[%clk 0:01:05.8]} 23. f3 {[%clk 0:01:47.6]} 23...
Rc8 {[%clk 0:00:59.7]} 24. Bc5 {[%clk 0:01:44.9]} 24... Be5 {[%clk 0:00:54.6]}
25. Kb4 {[%clk 0:01:36.2]} 25... Kg7 {[%clk 0:00:52.1]} 26. Bd4 {[%clk
0:01:34.7]} 26... Bxd4 {[%clk 0:00:34]} 27. cxd4 {[%clk 0:01:35.2]} 27... Ne8
{[%clk 0:00:27.7]} 28. Kc5 {[%clk 0:01:32.6]} 28... Rd8 {[%clk 0:00:25.1]} 29.
Bc2 {[%clk 0:01:27.7]} 29... Rd7 {[%clk 0:00:26.3]} 30. Bb3 {[%clk 0:01:10.9]}
30... Nc7 {[%clk 0:00:23.8]} 31. Kb6 {[%clk 0:01:06.6]} 31... Nb5 {[%clk
0:00:24.6]} 32. d5 {[%clk 0:01:07.8]} 32... cxd5 {[%clk 0:00:21.4]} 33. Rxd5
{[%clk 0:01:08.7]} 33... Nd6 {[%clk 0:00:21.9]} 34. e5 {[%clk 0:00:57.6]} 34...
Nc8+ {[%clk 0:00:22.5]} 35. Kc5 {[%clk 0:00:58.8]} 35... Rc7+ {[%clk 0:00:23.5]}
36. Kb4 {[%clk 0:00:59.6]} 36... e6 {[%clk 0:00:23.6]} 37. Rc5 {[%clk
0:00:58.8]} 37... Rxc5 {[%clk 0:00:23.6]} 38. Kxc5 {[%clk 0:01:00.4]} 38... Kf8
{[%clk 0:00:24.2]} 39. Bc2 {[%clk 0:00:59.7]} 39... Ke7 {[%clk 0:00:25]} 40. Be4
{[%clk 0:01:01]} 40... Kd7 {[%clk 0:00:12.9]} 41. Bxb7 {[%clk 0:01:01.3]} 41...
Ne7 {[%clk 0:00:14.3]} 42. Bxa6 {[%clk 0:01:02]} 42... Nc6 {[%clk 0:00:15.4]}
43. Bb5 {[%clk 0:01:03]} 1-0

[Event "*** Titled Tuesday 3|2 Blitz"]
[Site "Chess.com"]
[Date "2017.03.07"]
[Round "6"]
[White "platy3"]
[Black "Fandorine"]
[Result "0-1"]
[WhiteElo "2583"]
[BlackElo "2638"]
[TimeControl "180+2"]
[EndTime "14:24:44 PST"]
[Termination "Fandorine won by resignation"]

1. e4 {[%clk 0:03:02]} 1... c5 {[%clk 0:03:00.8]} 2. Nf3 {[%clk 0:03:01.4]} 2...
e6 {[%clk 0:03:02.3]} 3. d4 {[%clk 0:03:01.3]} 3... cxd4 {[%clk 0:03:04.2]} 4.
Nxd4 {[%clk 0:03:02.6]} 4... Nc6 {[%clk 0:03:05.9]} 5. Nc3 {[%clk 0:03:01.7]}
5... Qc7 {[%clk 0:03:07.3]} 6. f4 {[%clk 0:03:03.2]} 6... Nxd4 {[%clk
0:03:07.5]} 7. Qxd4 {[%clk 0:03:03.4]} 7... a6 {[%clk 0:03:09.1]} 8. Be3 {[%clk
0:02:56.3]} 8... b5 {[%clk 0:03:10]} 9. O-O-O {[%clk 0:02:55.6]} 9... Bb7 {[%clk
0:03:10]} 10. Be2 {[%clk 0:02:47.1]} 10... Rc8 {[%clk 0:03:10.1]} 11. a3 {[%clk
0:02:30.4]} 11... Nf6 {[%clk 0:03:02]} 12. Bd3 {[%clk 0:01:36.8]} 12... Bxa3
{[%clk 0:02:45.1]} 13. Nxb5 {[%clk 0:01:31.1]} 13... Bxb2+ {[%clk 0:02:37.8]}
14. Kxb2 {[%clk 0:01:31.3]} 14... axb5 {[%clk 0:02:39.2]} 15. Qb4 {[%clk
0:01:32.7]} 15... Bc6 {[%clk 0:02:15]} 16. Ra1 {[%clk 0:01:25.8]} 16... d6
{[%clk 0:02:09.5]} 17. Ra7 {[%clk 0:01:09.1]} 17... Qb8 {[%clk 0:02:10.3]} 18.
Rha1 {[%clk 0:00:47.2]} 18... O-O {[%clk 0:02:11.2]} 19. R1a6 {[%clk 0:00:35.7]}
19... Bb7 {[%clk 0:01:43.4]} 20. Rxd6 {[%clk 0:00:31.1]} 20... Bxe4 {[%clk
0:01:42.7]} 21. Bd4 {[%clk 0:00:08.2]} 21... Bxd3 {[%clk 0:01:18.5]} 22. cxd3
{[%clk 0:00:10.1]} 22... Nd5 {[%clk 0:01:19.1]} 23. Qa3 {[%clk 0:00:11.8]} 23...
Rc7 {[%clk 0:00:40.2]} 24. Rxc7 {[%clk 0:00:05]} 24... Qxc7 {[%clk 0:00:39.8]}
25. Qc5 {[%clk 0:00:04]} 25... Qxc5 {[%clk 0:00:21.3]} 26. Bxc5 {[%clk
0:00:04.7]} 26... Nxf4 {[%clk 0:00:18.6]} 27. Rd4 {[%clk 0:00:05.6]} 27... Rc8
{[%clk 0:00:19.5]} 28. Bb6 {[%clk 0:00:02.9]} 28... Nd5 {[%clk 0:00:20.4]} 29.
Ba5 {[%clk 0:00:03.8]} 29... f5 {[%clk 0:00:21]} 30. Rh4 {[%clk 0:00:03.3]}
30... h6 {[%clk 0:00:21.2]} 31. Rh3 {[%clk 0:00:04.7]} 31... Kf7 {[%clk
0:00:22.1]} 32. Rf3 {[%clk 0:00:06]} 32... b4 {[%clk 0:00:21.4]} 33. d4 {[%clk
0:00:05.3]} 33... Ra8 {[%clk 0:00:22.4]} 0-1